fUST/lending_fUST_20241031
["ID","MTS","AMOUNT","RATE_DAILY","PERIOD"]
[341079519,1730349039162,-500.0,0.00030885,5]
[341079520,1730349039171,-500.0,0.00030885,5]
[341079521,1730349039180,-500.0,0.00030885,5]
[341079522,1730349039190,-500.0,0.00030885,5]
[341079523,1730349039199,-306.54801113,0.00030885,5]
[341079524,1730349039209,-312.03043281,0.00030885,5]
[341079525,1730349039218,-156.25664864,0.00030885,5]
[341079526,1730349039227,-502.21401065,0.00030885,5]
[341079527,1730349039237,-413.59682162,0.00030885,5]
[341079528,1730349039246,-502.00325745,0.00030885,5]
[341079529,1730349039256,-505.6131961,0.00030885,5]
[341079530,1730349039265,-177.38360105,0.00030885,5]
[341079531,1730349039274,-504.2208762,0.00030885,5]
[341079532,1730349039285,-500.0,0.00030885,5]
[341079533,1730349039296,-500.0,0.00030885,5]
[341079534,1730349039306,-500.0,0.00030885,5]
[341079535,1730349039315,-500.0,0.00030885,5]
[341079536,1730349039324,-500.0,0.00030885,5]
[341079537,1730349039334,-502.89376383,0.00030885,5]
[341079538,1730349039343,-501.68668571,0.00030885,5]
[341079539,1730349039352,-501.21633662,0.00030885,5]
[341079540,1730349039362,-500.83020901,0.00030885,5]
[341079541,1730349039372,-500.74103745,0.00030885,5]
[341079542,1730349039381,-500.7826596,0.00030885,5]
[341079543,1730349039390,-502.76016331,0.00030885,5]
[341079544,1730349039400,-500.0,0.00030885,5]
[341079545,1730349039409,-504.28779087,0.00030885,5]
[341079546,1730349039419,-509.254381,0.00030885,5]
[341079547,1730349039428,-500.0,0.00030885,5]
[341079548,1730349039437,-502.14947389,0.00030885,5]
[341079549,1730349039447,-506.29511336,0.00030885,5]
[341079550,1730349039456,-504.78816683,0.00030885,5]
[341079551,1730349039466,-504.06978989,0.00030885,5]
[341079552,1730349039476,-503.39904094,0.00030885,5]
[341079553,1730349039485,-504.75295574,0.00030885,5]
[341079554,1730349039495,-510.806401,0.00030885,5]
[341079555,1730349039505,-505.53751388,0.00030885,5]
[341079556,1730349039515,-514.37935497,0.00030885,5]
[341079557,1730349039524,-1001.87906573,0.00030885,30]
[341079558,1730349039534,-501.12959435,0.00030885,5]
[341079559,1730349039543,-500.64307975,0.00030885,5]
[341079560,1730349039554,-500.0,0.00030885,5]
[341079561,1730349039563,-500.0,0.00030885,2]
[341079562,1730349039572,-507.95825658,0.00030885,5]
[341079563,1730349039582,-504.35745947,0.00030885,5]
[341079564,1730349039591,-515.96720457,0.00030885,5]
[341079565,1730349039601,-500.0,0.00030885,5]
[341079566,1730349039610,-500.0,0.00030885,5]
[341079567,1730349039620,-500.0,0.00030885,5]
[341079568,1730349039629,-500.0,0.00030885,5]
[341079569,1730349039638,-500.0,0.00030885,5]
[341079570,1730349039647,-107.73851207,0.00030885,5]
[341079571,1730349040664,-392.26148793,0.00030885,5]
[341079572,1730349040674,-200.0,0.00030885,5]
[341079573,1730349040684,-563.44,0.00030885,5]
[341079574,1730349040694,-500.0,0.00030885,5]
[341079575,1730349040703,-500.0,0.00030885,5]
[341079576,1730349040713,-2468.77,0.00030885,5]
[341079577,1730349040722,-620.46,0.00030885,5]
[341079578,1730349040731,-513.21,0.00030885,5]
[341079579,1730349040741,-649.15304914,0.00030885,5]
[341079580,1730349040750,-1205.23,0.00030885,5]
[341079581,1730349040759,-4187.5,0.00030885,5]
[341079582,1730349040769,-540.54,0.00030885,5]
[341079583,1730349040778,-500.0,0.00030885,5]
[341079584,1730349040788,-500.0,0.00030885,5]
[341079585,1730349040798,-4207.63,0.00030885,5]
[341079586,1730349040808,-500.0,0.00030885,2]
[341079587,1730349040817,-508.29571369,0.00030885,5]
[341079588,1730349040827,-1030.62,0.00031158,5]
[341079589,1730349040836,-500.0,0.00031158,5]
[341079590,1730349040845,-3244.72,0.00031158,5]
[341079591,1730349040854,-500.0,0.00031158,5]
[341079592,1730349040864,-500.0,0.00031158,5]
[341079593,1730349040873,-727.79,0.00031158,5]
[341079594,1730349040883,-7096.57,0.00031158,3]
[341079595,1730349040892,-822.26,0.00031158,5]
[341079596,1730349040903,-500.0,0.00031158,5]
[341079597,1730349040913,-500.0,0.00031158,2]
[341079598,1730349040922,-500.0,0.00031158,5]
[341079599,1730349040932,-270.98856269,0.00031159,5]
[341079600,1730349040942,-500.0,0.00031159,5]
[341079601,1730349040951,-500.0,0.00031159,5]
[341079602,1730349040961,-500.0,0.00031159,5]
[341079603,1730349040970,-500.0,0.00031159,2]
[341079604,1730349040978,-500.0,0.00031159,5]
[341079605,1730349040988,-500.0,0.00031159,5]
[341079606,1730349040997,-500.0,0.00031159,5]
[341079607,1730349041006,-563.44,0.00031159,5]
[341079608,1730349041015,-500.0,0.00031159,5]
[341079609,1730349041025,-500.0,0.00031159,5]
[341079610,1730349041034,-2468.77,0.00031159,5]
[341079611,1730349041044,-620.46,0.00031159,5]
[341079612,1730349041059,-513.21,0.00031159,5]
[341079613,1730349041069,-1205.23,0.00031159,5]
[341079614,1730349041078,-4187.5,0.00031159,5]
[341079615,1730349041087,-540.54,0.00031159,5]
[341079616,1730349041096,-500.0,0.00031159,5]
[341079617,1730349041106,-500.0,0.00031159,5]
[341079618,1730349041114,-4207.63,0.00031159,5]
[341079619,1730349041124,-500.0,0.00031173,5]
[341079620,1730349041133,-201.16245799,0.00031173,5]
[341079621,1730349041142,-500.0,0.00031173,5]
[341079622,1730349041151,-501.2410722,0.00031173,5]
[341079623,1730349041160,-500.0,0.00031173,2]
[341079624,1730349041168,-502.51999503,0.00031173,5]
[341079625,1730349041177,-150.34255149,0.00031173,5]
[341079626,1730349041186,-362.58861872,0.00031173,5]
[341079627,1730349041195,-500.0,0.00031173,2]
[341079628,1730349041205,-172.6275355,0.00031173,5]
[341079629,1730349041214,-160.0714089,0.00031173,5]
[341079630,1730349041224,-500.0,0.00031173,5]
[341079631,1730349041234,-500.0,0.00031424,5]
[341079632,1730349041244,-1030.62,0.00031432,5]
[341079633,1730349041254,-500.0,0.00031432,5]
[341079634,1730349041263,-3244.72,0.00031432,5]
[341079635,1730349041272,-280.53222636,0.00031432,5]
[341079636,1730349041282,-500.0,0.00031432,5]
[341079637,1730349041291,-727.79,0.00031432,5]
[341079638,1730349041304,-7096.57,0.00031432,3]
[341079639,1730349041314,-822.26,0.00031432,5]
[341079640,1730349041324,-500.0,0.00031432,5]
[341079641,1730349041333,-500.0,0.00031432,2]
[341079642,1730349041342,-500.0,0.00031432,2]
[341079643,1730349041353,-500.0,0.00031432,5]
[341079644,1730349041362,-500.0,0.00031433,5]
[341079645,1730349041372,-285.48571392,0.00031433,5]
[341079646,1730349041383,-342.18115615,0.00031433,5]
[341079647,1730349041392,-512.46814266,0.00031433,2]
[341079648,1730349041402,-500.0,0.00031433,5]
[341079649,1730349041411,-500.0,0.00031433,5]
[341079650,1730349041421,-500.0,0.00031433,5]
[341079651,1730349041431,-563.44,0.00031433,5]
[341079652,1730349041441,-500.0,0.00031433,5]
[341079653,1730349041450,-500.0,0.00031433,5]
[341079654,1730349041459,-2468.77,0.00031433,5]
[341079655,1730349041477,-620.46,0.00031433,5]
[341079656,1730349041488,-513.21,0.00031433,5]
[341079657,1730349041498,-1205.23,0.00031433,5]
[341079658,1730349041507,-4187.5,0.00031433,5]
[341079659,1730349041517,-540.54,0.00031433,5]
[341079660,1730349041527,-500.0,0.00031433,5]
[341079661,1730349041537,-500.0,0.00031433,5]
[341079662,1730349041546,-4207.63,0.00031433,5]
[341079663,1730349041557,-503.03932214,0.00031473,5]
[341079664,1730349041566,-500.0,0.00031473,5]
[341079665,1730349041575,-37.39468081,0.00031473,5]
[341079674,1730349044610,-22.94352748,0.00031473,5]
[341079677,1730349048701,-439.66179171,0.00031473,5]
[341079678,1730349048712,-1030.62,0.00031706,5]
[341079679,1730349048723,-500.0,0.00031706,5]
[341079680,1730349048733,-1892.31047272,0.00031706,5]
[341079687,1730349380653,170.88247,0.00013973,2]
[341079700,1730349921186,172.117196,0.00013973,2]
[341079703,1730349947141,-150.35955824,0.00024658,2]
[341079704,1730349947163,-169.445457,0.00028264,2]
[341079705,1730349947184,-166.22941197,0.00028542,2]
[341079706,1730350036097,-15.26339113,0.00028542,2]
[341079707,1730350036118,-3141.70003568,0.00028573,2]
[341079708,1730350046104,-31.67434002,0.00028573,2]
[341079709,1730350046127,-166.9289919,0.00028642,2]
[341079710,1730350046148,-273.9712599,0.0002865,2]
[341079711,1730350046176,-1118.8444731,0.0002865,2]
[341079712,1730350046196,-248.7151029,0.00028694,2]
[341079713,1730350046219,-163.79345203,0.00028883,2]
[341079714,1730350053100,-3.12185197,0.00028883,2]
[341079715,1730350053122,-191.265477,0.00029012,2]
[341079716,1730350053143,-300.0,0.0002904,2]
[341079717,1730350053167,-300.0,0.0002904,2]
[341079718,1730350053187,-3196.2566407,0.00029041,2]
[341079719,1730350053208,-1392.815733,0.00029335,2]
[341079720,1730350053230,-166.915304,0.00029385,2]
[341079721,1730350053253,-265.595373,0.00029857,2]
[341079722,1730350053274,-265.595373,0.00029864,2]
[341079723,1730350053295,-265.595373,0.00029872,2]
[341079724,1730350053316,-265.595373,0.0002988,2]
[341079725,1730350053339,-166.915304,0.00029887,2]
[341079726,1730350053362,-113.18977547,0.00029888,2]
[341079727,1730350123179,500.0,0.00034429,30]
[341079728,1730350146102,-158.9863897,0.0002848,2]
[341079729,1730350148136,-6.2561023,0.0002848,2]
[341079730,1730350161167,-152.40559753,0.00029888,2]
[341079731,1730350161196,-265.595373,0.00029896,2]
[341079732,1730350161221,-265.595373,0.00029904,2]
[341079733,1730350161248,-265.595373,0.00029912,2]
[341079734,1730350161275,-265.595373,0.00029919,2]
[341079735,1730350161304,-265.595373,0.00029927,2]
[341079736,1730350161333,-265.595373,0.00029935,2]
[341079737,1730350161364,-265.595373,0.00029943,2]
[341079738,1730350161394,-265.595373,0.00029951,2]
[341079739,1730350161426,-265.595373,0.00029959,2]
[341079740,1730350161452,-265.595373,0.00029967,2]
[341079741,1730350161480,-265.595373,0.00029974,2]
[341079742,1730350161507,-265.595373,0.00029982,2]
[341079743,1730350161533,-265.595373,0.0002999,2]
[341079744,1730350161560,-265.595373,0.00029998,2]
[341079745,1730350161584,-265.595373,0.00030006,2]
[341079746,1730350161611,-1392.815733,0.0003002,2]
[341079747,1730350161637,-166.915304,0.00030388,2]
[341079748,1730350161664,-3252.44930832,0.00030509,2]
[341079749,1730350161689,-500.0,0.00030608,2]
[341079750,1730350161716,-18.70211401,0.00030608,2]
[341079751,1730350165114,-531.20908079,0.00030608,2]
[341079752,1730350165138,-228.73989662,0.00030608,2]
[341079753,1730350165165,-500.0,0.00030609,2]
[341079754,1730350165193,-500.0,0.00030609,2]
[341079755,1730350165221,-190.52698315,0.00030609,5]
[341079756,1730350165246,-500.0,0.00030609,5]
[341079757,1730350165270,-500.0,0.00030609,5]
[341079758,1730350165295,-386.31062201,0.00030609,5]
[341079792,1730350231750,-500.0,0.00030608,2]
[341079794,1730350231760,-450.94823985,0.00030608,2]
[341079796,1730350231770,-113.68937799,0.00030609,5]
[341079798,1730350231779,-500.0,0.00030609,5]
[341079800,1730350231789,-500.0,0.00030609,5]
[341079801,1730350231799,-500.0,0.00030609,5]
[341079803,1730350231809,-500.0,0.00030609,5]
[341079805,1730350231820,-500.0,0.00030609,5]
[341079807,1730350231830,-555.19345557,0.00030609,5]
[341079809,1730350231841,-500.0,0.00030609,5]
[341079811,1730350231851,-500.0,0.00030609,5]
[341079813,1730350231861,-500.0,0.00030609,5]
[341079816,1730350231872,-563.44,0.00030609,5]
[341079818,1730350231884,-545.49795378,0.00030609,5]
[341079820,1730350231894,-500.0,0.00030609,5]
[341079822,1730350231904,-500.0,0.00030609,5]
[341079824,1730350231913,-500.0,0.00030609,5]
[341079826,1730350231922,-2057.31,0.00030609,5]
[341079828,1730350231932,-500.0,0.00030609,5]
[341079830,1730350231943,-646.32,0.00030609,5]
[341079832,1730350231954,-956.51097281,0.00030609,5]
[341079835,1730350231968,-34.90902719,0.00030609,5]
[341079837,1730350231978,-217.86326738,0.00030609,5]
[341079874,1730350239799,-1037.57673262,0.00030609,5]
[341079875,1730350239810,-875.52865615,0.00030609,5]
[341079876,1730350239854,-2238.81134385,0.00030609,5]
[341079877,1730350239867,-500.0,0.00030609,5]
[341079878,1730350239877,-3707.5,0.00030609,5]
[341079879,1730350239886,-503.0,0.00030609,5]
[341079880,1730350239897,-500.0,0.00030609,5]
[341079881,1730350239908,-509.65119481,0.00030609,5]
[341079882,1730350239919,-62.92406476,0.00030609,5]
[341079883,1730350239932,-543.56593524,0.00030609,5]
[341079884,1730350239943,-500.0,0.00030609,5]
[341079885,1730350239953,-500.0,0.00030609,5]
[341079886,1730350239964,-3.2200653,0.00030609,5]
[341079892,1730350245982,-496.7799347,0.00030609,5]
[341079893,1730350245993,-4170.73,0.00030609,5]
[341079894,1730350246003,-500.0,0.00030609,5]
[341079895,1730350246012,-7516.02,0.00030609,3]
[341079896,1730350246022,-811.34,0.00030609,5]
[341079897,1730350246031,-500.0,0.00030609,5]
[341079898,1730350246042,-500.0,0.00030609,5]
[341079899,1730350246052,-500.0,0.00030609,5]
[341079900,1730350246062,-500.0,0.0003061,2]
[341079901,1730350246072,-500.0,0.0003061,5]
[341079902,1730350246083,-500.0,0.0003061,5]
[341079903,1730350246093,-500.0,0.0003061,2]
[341079904,1730350246103,-380.70841635,0.0003061,5]
[341079905,1730350246113,-501.18695175,0.00030673,5]
[341079906,1730350246123,-169.67417528,0.00030673,5]
[341079907,1730350246133,-210.16347037,0.00030673,5]
[341079909,1730350246142,-500.0,0.00030673,5]
[341079911,1730350246151,-500.0,0.00030673,5]
[341079913,1730350246160,-500.0,0.00030673,5]
[341079914,1730350246170,-500.0,0.00030673,5]
[341079915,1730350246179,-500.0,0.00030673,2]
[341079916,1730350246188,-215.090583,0.00030727,2]
[341079917,1730350246197,-173.43163467,0.00030784,2]
[341079918,1730350246207,-4830.70692032,0.00030867,2]
[341079919,1730350246216,-500.0,0.00030883,2]
[341079920,1730350246226,-158.58561096,0.00030883,5]
[341079921,1730350246237,-500.0,0.00030883,5]
[341079922,1730350246247,-500.0,0.00030883,5]
[341079923,1730350246256,-500.0,0.00030883,5]
[341079924,1730350246266,-500.0,0.00030883,5]
[341079925,1730350246276,-500.0,0.00030883,5]
[341079926,1730350246285,-563.44,0.00030883,5]
[341079927,1730350246295,-500.0,0.00030883,5]
[341079928,1730350246304,-500.0,0.00030883,5]
[341079929,1730350246314,-500.0,0.00030883,5]
[341079930,1730350246325,-2057.31,0.00030883,5]
[341079931,1730350246334,-500.0,0.00030883,5]
[341079932,1730350246344,-646.32,0.00030883,5]
[341079933,1730350246353,-991.42,0.00030883,5]
[341079934,1730350246362,-1255.44,0.00030883,5]
[341079935,1730350246372,-664.4908726,0.00030883,5]
[341079936,1730350394183,170.88247,0.00013973,2]
[341079938,1730350892898,172.117196,0.00013973,2]
[341079940,1730350997118,195.55175808,0.0003443,120]
[341079941,1730351141349,-990.57443009,0.00025,2]
[341079942,1730351231100,-1009.42556991,0.00025,2]
[341079943,1730351231123,-165.954579,0.0002725,2]
[341079944,1730351231145,-162.2310099,0.00027792,2]
[341079945,1730351231169,-158.482,0.000278,120]
[341079946,1730351231197,-157.716291,0.00027829,2]
[341079947,1730351231220,-300.0,0.00027976,2]
[341079948,1730351231245,-300.0,0.00027976,2]
[341079949,1730351231267,-508.00584482,0.00027977,2]
[341079950,1730351232192,-750.57407464,0.00027977,2]
[341079951,1730351239143,-173.88768953,0.00027977,2]
[341079952,1730351241097,-441.66974443,0.00027977,2]
[341079953,1730351252143,-4147.64138627,0.00027977,2]
[341079955,1730351346104,-10321.14316881,0.00027977,2]
[341079956,1730351346130,-160.415716,0.00028141,2]
[341079957,1730351346151,-158.52,0.0002853,30]
[341079958,1730351346174,-160.415716,0.00028629,2]
[341079959,1730351346199,-160.415716,0.00029118,2]
[341079960,1730351346226,-157.716291,0.00029199,2]
[341079961,1730351346248,-158.647,0.0002926,5]
[341079962,1730351346273,-160.415716,0.00029607,2]
[341079963,1730351346299,-158.539,0.0002966,2]
[341079964,1730351346323,-4068.95747045,0.0003,5]
[341079965,1730351346346,-450.0,0.0003,30]
[341079966,1730351346367,-13893.27,0.0003,5]
[341079967,1730351346393,-2845.89314478,0.00030036,2]
[341079968,1730351346417,-214.4093461,0.00030078,2]
[341079969,1730351346442,-500.0,0.00030135,2]
[341079970,1730351346468,-500.0,0.00030135,2]
[341079971,1730351346491,-500.0,0.00030135,2]
[341079972,1730351346515,-300.0,0.00030135,2]
[341079973,1730351346536,-500.0,0.00030136,5]
[341079974,1730351346556,-500.0,0.00030136,5]
[341079975,1730351346584,-500.0,0.00030136,5]
[341079976,1730351346609,-370.31186494,0.00030136,5]
[341079977,1730351346636,-500.0,0.00030136,5]
[341079978,1730351346660,-436.89668452,0.00030136,5]
[341079979,1730351346683,-500.0,0.00030136,5]
[341079980,1730351346706,-500.0,0.00030136,5]
[341079981,1730351346731,-500.0,0.00030136,5]
[341079982,1730351346753,-521.08506662,0.00030136,5]
[341079983,1730351346777,-500.0,0.00030136,5]
[341079984,1730351346800,-500.0,0.00030136,5]
[341079985,1730351346821,-500.0,0.00030136,5]
[341079986,1730351346844,-500.0,0.00030136,5]
[341079987,1730351346865,-500.0,0.00030136,5]
[341079988,1730351346889,-500.0,0.00030136,5]
[341079989,1730351346912,-1047.99,0.00030136,5]
[341079990,1730351346938,-500.0,0.00030136,5]
[341079991,1730351346962,-500.0,0.00030136,5]
[341079992,1730351346988,-500.0,0.00030136,5]
[341079993,1730351347011,-3309.29,0.00030136,5]
[341079994,1730351347032,-500.0,0.00030136,5]
[341079995,1730351347056,-1915.9,0.00030136,5]
[341079996,1730351347076,-500.0,0.00030136,5]
[341079997,1730351347099,-500.0,0.00030136,5]
[341079998,1730351347120,-581.22,0.00030136,5]
[341079999,1730351347141,-581.7,0.00030136,5]
[341080000,1730351347163,-8172.21,0.00030136,3]
[341080001,1730351347183,-500.0,0.00030136,2]
[341080002,1730351347204,-946.14,0.00030136,5]
[341080003,1730351347224,-553.07315355,0.00030136,5]
[341080004,1730351347244,-500.0,0.00030136,5]
[341080005,1730351347264,-500.0,0.00030136,5]
[341080006,1730351347286,-500.0,0.00030136,5]
[341080007,1730351347307,-500.0,0.00030136,5]
[341080008,1730351347332,-500.0,0.00030136,5]
[341080009,1730351347354,-4439.86,0.00030136,5]
[341080010,1730351347375,-500.0,0.00030136,5]
[341080011,1730351347396,-500.0,0.00030136,2]
[341080012,1730351347417,-299.44031113,0.00030136,5]
[341080013,1730351362145,-152.87263571,0.00030036,2]
[341080014,1730351362166,-200.55968887,0.00030136,5]
[341080015,1730351362189,-500.0,0.00030136,5]
[341080016,1730351362209,-500.0,0.00030136,5]
[341080017,1730351362231,-500.0,0.00030136,5]
[341080018,1730351362252,-500.0,0.00030136,5]
[341080019,1730351362274,-500.0,0.00030136,5]
[341080020,1730351362294,-500.0,0.00030136,5]
[341080021,1730351362317,-579.09,0.00030136,5]
[341080022,1730351362338,-500.0,0.00030136,5]
[341080023,1730351362363,-500.0,0.00030136,5]
[341080024,1730351362384,-500.0,0.00030136,5]
[341080025,1730351362407,-500.0,0.00030136,5]
[341080026,1730351362429,-500.0,0.00030136,5]
[341080027,1730351362452,-500.0,0.00030136,5]
[341080028,1730351362474,-500.0,0.00030136,5]
[341080029,1730351362495,-1004.32,0.00030136,5]
[341080030,1730351362518,-500.0,0.00030136,5]
[341080031,1730351362541,-173.43163467,0.0003031,2]
[341080032,1730351362562,-811.04,0.000304,3]
[341080033,1730351362582,-198.23546646,0.00030409,2]
[341080034,1730351362604,-330.30255691,0.00030409,2]
[341080035,1730351362624,-500.0,0.00030409,2]
[341080036,1730351362645,-500.0,0.0003041,5]
[341080037,1730351362666,-500.0,0.0003041,5]
[341080038,1730351362687,-500.0,0.0003041,5]
[341080039,1730351362708,-500.0,0.0003041,5]
[341080040,1730351362729,-500.0,0.0003041,5]
[341080041,1730351362756,-196.06923042,0.0003041,5]
[341080042,1730351362777,-500.0,0.0003041,5]
[341080043,1730351362798,-500.0,0.0003041,5]
[341080044,1730351362819,-500.0,0.0003041,5]
[341080045,1730351362841,-462.4932391,0.0003041,5]
[341080046,1730351362864,-500.0,0.0003041,5]
[341080047,1730351362887,-3309.29,0.0003041,5]
[341080048,1730351362908,-500.0,0.0003041,5]
[341080049,1730351362934,-1915.9,0.0003041,5]
[341080050,1730351362957,-500.0,0.0003041,5]
[341080051,1730351362980,-500.0,0.0003041,5]
[341080052,1730351363004,-581.22,0.0003041,5]
[341080053,1730351363027,-581.7,0.0003041,5]
[341080054,1730351363051,-8172.21,0.0003041,3]
[341080055,1730351363073,-500.0,0.0003041,2]
[341080056,1730351363097,-946.14,0.0003041,5]
[341080057,1730351363118,-386.83917651,0.0003041,5]
[341080058,1730351363141,-500.0,0.0003041,5]
[341080059,1730351363165,-500.0,0.0003041,5]
[341080060,1730351363186,-500.0,0.0003041,5]
[341080061,1730351363209,-500.0,0.0003041,5]
[341080062,1730351363231,-4439.86,0.0003041,5]
[341080063,1730351363252,-500.0,0.0003041,5]
[341080064,1730351363273,-500.0,0.0003041,5]
[341080065,1730351363295,-500.0,0.0003041,5]
[341080066,1730351363317,-500.0,0.0003041,5]
[341080067,1730351363338,-500.0,0.0003041,5]
[341080068,1730351363361,-500.0,0.0003041,5]
[341080069,1730351363384,-500.0,0.0003041,5]
[341080070,1730351363405,-550.74542068,0.0003041,5]
[341080071,1730351363429,-579.09,0.0003041,5]
[341080072,1730351363453,-500.0,0.0003041,5]
[341080073,1730351363477,-500.0,0.0003041,5]
[341080074,1730351363500,-500.0,0.0003041,5]
[341080075,1730351363521,-500.0,0.0003041,5]
[341080076,1730351363544,-500.0,0.0003041,5]
[341080077,1730351363567,-500.0,0.0003041,5]
[341080078,1730351363589,-500.0,0.0003041,5]
[341080079,1730351363613,-1004.32,0.0003041,5]
[341080080,1730351363635,-500.0,0.0003041,5]
[341080081,1730351363658,-4830.70692032,0.00030451,2]
[341080082,1730351363680,-150.0,0.00030505,2]
[341080083,1730351363701,-500.0,0.00030607,2]
[341080084,1730351363725,-500.0,0.00030608,5]
[341080085,1730351363746,-500.0,0.00030608,5]
[341080086,1730351363773,-500.0,0.00030608,5]
[341080087,1730351363798,-695.87,0.00030608,5]
[341080088,1730351363824,-500.0,0.00030608,5]
[341080089,1730351363848,-1351.69,0.00030608,5]
[341080090,1730351363868,-3573.85,0.00030608,5]
[341080091,1730351363891,-500.0,0.00030608,5]
[341080092,1730351363913,-500.0,0.00030608,5]
[341080093,1730351363934,-500.0,0.00030609,2]
[341080094,1730351363957,-500.0,0.00030609,5]
[341080095,1730351364078,-500.0,0.00030609,5]
[341080096,1730351364102,-500.0,0.00030609,5]
[341080097,1730351364123,-513.32397946,0.00030609,5]
[341080098,1730351364146,-500.0,0.00030609,5]
[341080099,1730351364168,-495.0,0.00030609,5]
[341080100,1730351364191,-510.93430715,0.00030609,5]
[341080101,1730351364213,-440.02763831,0.00030673,5]
[341080102,1730351364234,-271.55909879,0.00030673,2]
[341080103,1730351364258,-501.19686716,0.00030673,5]
[341080104,1730351364279,-500.0,0.00030673,5]
[341080105,1730351364299,-260.70975657,0.00030673,5]
[341080106,1730351364320,-212.36577874,0.00030673,5]
[341080107,1730351364342,-500.0,0.00030673,5]
[341080108,1730351364365,-500.0,0.00030673,5]
[341080109,1730351364386,-502.03454288,0.00030673,5]
[341080110,1730351364409,-500.0,0.00030673,5]
[341080111,1730351364430,-169.06144595,0.00030673,5]
[341080112,1730351364451,-501.18955706,0.00030673,5]
[341080113,1730351364473,-500.0,0.00030673,5]
[341080114,1730351364493,-604.25282314,0.00030673,5]
[341080115,1730351364514,-502.98996408,0.00030673,5]
[341080116,1730351364534,-500.0,0.00030673,2]
[341080117,1730351364556,-500.0,0.00030673,5]
[341080118,1730351364577,-500.0,0.00030683,2]
[341080119,1730351364600,-500.0,0.00030684,5]
[341080120,1730351364620,-451.10229854,0.00030684,5]
[341080121,1730351364642,-574.36053733,0.00030684,5]
[341080122,1730351364663,-246.32126577,0.00030684,5]
[341080123,1730351364684,-500.0,0.00030684,5]
[341080124,1730351364705,-500.0,0.00030684,5]
[341080125,1730351364726,-500.0,0.00030684,5]
[341080126,1730351364751,-500.0,0.00030684,5]
[341080127,1730351364777,-3309.29,0.00030684,5]
[341080128,1730351364799,-598.54732222,0.00030684,5]
[341080129,1730351364825,-1915.9,0.00030684,5]
[341080130,1730351364852,-500.0,0.00030684,5]
[341080131,1730351364875,-500.0,0.00030684,5]
[341080132,1730351364897,-581.22,0.00030684,5]
[341080133,1730351364920,-581.7,0.00030684,5]
[341080134,1730351364941,-8172.21,0.00030684,3]
[341080135,1730351364962,-500.0,0.00030684,2]
[341080136,1730351364983,-946.14,0.00030684,5]
[341080137,1730351365005,-500.0,0.00030684,5]
[341080138,1730351365027,-500.0,0.00030684,5]
[341080139,1730351365050,-500.0,0.00030684,5]
[341080140,1730351365072,-500.0,0.00030684,5]
[341080141,1730351365094,-4439.86,0.00030684,5]
[341080142,1730351365115,-500.0,0.00030684,5]
[341080143,1730351365138,-500.0,0.00030684,5]
[341080144,1730351365159,-500.0,0.00030684,5]
[341080145,1730351365181,-500.0,0.00030684,5]
[341080146,1730351365204,-579.09,0.00030684,5]
[341080147,1730351365225,-500.0,0.00030684,5]
[341080148,1730351365248,-500.0,0.00030684,5]
[341080149,1730351365268,-458.61364873,0.00030684,5]
[341080150,1730351365289,-500.0,0.00030684,5]
[341080151,1730351365311,-500.0,0.00030684,5]